{"text_format":"3","workbook":"xlsx","n_sheets":4,"sheets":["koud buffet","matrixen","Algemene verkoopsvoorwaarden","Reservatievoorstel"],"not_rendered":{"macros":1,"external_links":1,"defined_names":4},"read":"whole","date_system":"1900"}

{"sheet":"koud buffet","index":0,"n_rows":139,"n_cols":38,"rows_kept":139,"merged":[[12,6,12,10],[13,6,13,10],[14,6,14,10],[15,6,15,10],[16,6,16,10],[17,6,17,10],[18,6,18,10],[19,6,19,10],[20,6,20,10],[21,6,21,10],[22,6,22,10],[78,1,79,1],[101,10,101,14],[102,10,102,14],[103,10,103,14]]}
[null,"Deze info is van: Feestzaal Katelijnenhof, Heirweg 172, 8800 Roeselare. Contacteer de zaakvoerder: 0475/618058 - info@katelijnenhof.be - web: www.katelijnenhof.be met foto's en volledige prijslijst."]
[]
[null,{"$f":"\"Rekenmodule koud buffet. De prijzen van de recepties in deze module gelden voor alle personen waarvan de receptie gevolgd wordt door een maaltijd. Geldig  tot \" & DAY(matrixen!B1) & \" - \" & MONTH(matrixen!B1) & \" - \" & YEAR(matrixen!B1)","v":"Rekenmodule koud buffet. De prijzen van de recepties in deze module gelden voor alle personen waarvan de receptie gevolgd wordt door een maaltijd. Geldig  tot 31 - 12 - 2020"}]
[]
[{"$nulls":5},"kinderen",null,"kinderen",null,"kinderen"]
[{"$nulls":3},{"$f":"IF(TODAY()>AA11,\"Deze module is niet meer geldig.\",\"\")","v":""},null," 0 t.e.m. 2 j. 11 maand",null,"3 j. t.e.m. 5 j. 11 maand",null,"6 j, t.e.m. 11 jr. 11 maand"]
[null,"Totaal per volwassene:",null,{"$f":"IF(TODAY()>AA11,1/0,SUM(D10:D1001))","v":{"v":33.8,"d":"33.80"}},null,"0,00",null,{"$f":"ROUND(D7/3,2)","v":11.27},null,{"$f":"ROUND(D7/2,2)","v":{"v":16.9,"d":"16.90"}}]
[{"$nulls":5},"U kan ook voor de kinderen een kindermenu nemen ( zie een andere rekenmodule)"]
[]
[null,"MAAK STEEDS UW KEUZE in de gele vakken: (scroll naar beneden om meer gegevens in te vullen) Hierboven kunt u uw prijs volgen.",{"$nulls":6},"U vindt verder een overzicht van uw selectie"]
[null,"(klik op de gele balk, vervolgens op het pijltje rechts en scroll ev. naar beneden)",null,"prijs pp",null,"Gedetailleerde info","Selecteer hier uw hapjes:",null,{"$f":"COUNTA(G13:K23)","v":0},"hapjes geselecteerd.",{"$nulls":16},{"$f":"matrixen!B1","v":"2020-12-31"}]
[]
[null,"Maak in dit vak uw keuze voor het aperitief",null,{"$f":"VLOOKUP(B13,matrixen!B11:I19,8,FALSE)","v":{"v":0,"d":"0.00"}},null,{"$f":"HLOOKUP($B$13,matrixen!$T$14:$AB$28,2,FALSE)","v":0},{"$nulls":31},{"$f":"matrixen!AM16","v":"KOUD: crunchy sushi"}]
[null,"Maak in dit vak uw keuze voor het aperitief",{"$nulls":3},{"$f":"HLOOKUP($B$13,matrixen!$T$14:$AB$28,3,FALSE)","v":0},{"$nulls":20},{"$f":"matrixen!B11","v":"Maak in dit vak uw keuze voor het aperitief"},{"$nulls":10},{"$f":"matrixen!AM17","v":"luzerne met gerookte zalm, eitjes van vliegende vis in wasabi"}]
[null,{"$f":"\"U selecteerde tot nu \" & COUNTA(G13:K23)+IF(G24<>\"\",1,0)& \" hapjes.\"","v":"U selecteerde tot nu 0 hapjes."},null,{"$f":"IF(IF(B13=matrixen!N14,(I11-4)*matrixen!I46,I11*matrixen!I46)<0,0,IF(B13=matrixen!N14,(I11-4)*matrixen!I46,I11*matrixen!I46))","v":{"v":0,"d":"0.00"}},null,{"$f":"HLOOKUP($B$13,matrixen!$T$14:$AB$28,4,FALSE)","v":0},{"$nulls":20},{"$f":"matrixen!B12","v":"1 aperitief per persoon"},{"$nulls":10},{"$f":"matrixen!AM18","v":"preischeuten met tijgergarnalen en mini tomaat"}]
[{"$nulls":5},{"$f":"HLOOKUP($B$13,matrixen!$T$14:$AB$28,5,FALSE)","v":0},{"$nulls":20},{"$f":"matrixen!B13","v":"2 aperitieven per persoon"},{"$nulls":10},{"$f":"matrixen!AM19","v":"aperoglaasje parmaham met meloenbolletjes"}]
[{"$nulls":5},{"$f":"HLOOKUP($B$13,matrixen!$T$14:$AB$28,6,FALSE)","v":0},{"$nulls":20},{"$f":"matrixen!B14","v":"Receptie E"},{"$nulls":10},{"$f":"matrixen!AM20","v":"ganache van foie gras met frambozenconfituur en amandelbrood"}]
[{"$nulls":5},{"$f":"HLOOKUP($B$13,matrixen!$T$14:$AB$28,7,FALSE)","v":0},{"$nulls":20},{"$f":"matrixen!B15","v":"Receptie A"},{"$nulls":10},{"$f":"matrixen!AM21","v":"aperoglaasje parmaham met espuma van mango"}]
[null,"Indien een genodigde een extra aperitief bestelt of een aperitief wenst die niet in de prijs begrepen is dan:",{"$nulls":3},{"$f":"HLOOKUP($B$13,matrixen!$T$14:$AB$28,8,FALSE)","v":0},{"$nulls":20},{"$f":"matrixen!B16","v":0},{"$nulls":10},{"$f":"matrixen!AM22","v":"verse oester"}]
[null,"De gast die een extra aperitief bestelt betaalt deze zelf",{"$nulls":3},{"$f":"HLOOKUP($B$13,matrixen!$T$14:$AB$28,9,FALSE)","v":0},{"$nulls":20},{"$f":"matrixen!B17","v":0},{"$nulls":10},{"$f":"matrixen!AM23","v":"Taboulé met gerookte forel"}]
[null,"De gast die een extra aperitief bestelt betaalt deze zelf",{"$nulls":3},{"$f":"HLOOKUP($B$13,matrixen!$T$14:$AB$28,10,FALSE)","v":0},{"$nulls":20},{"$f":"matrixen!B18","v":0},{"$nulls":10},{"$f":"matrixen!AM24","v":"Haringhapje met curry"}]
[null,"Het mag op de gemeenschappelijke rekening.",{"$nulls":3},{"$f":"HLOOKUP($B$13,matrixen!$T$14:$AB$28,11,FALSE)","v":0},{"$nulls":20},{"$f":"matrixen!B19","v":0},{"$nulls":10},{"$f":"matrixen!AM25","v":"Mini bagel met zalm en kruidenkaas"}]
[{"$nulls":5},{"$f":"HLOOKUP($B$13,matrixen!$T$14:$AB$28,12,FALSE)","v":0},{"$nulls":20},{"$f":"matrixen!B20","v":0},{"$nulls":10},{"$f":"matrixen!AM26","v":"BORD: op tafel met rauwe groenten en cocktailsaus (wortel, bloemkool, radijs)"}]
[{"$nulls":5},{"$f":"HLOOKUP($B$13,matrixen!$T$14:$AB$28,13,FALSE)","v":0},{"$f":"IF(F20=\"tapenades\", matrixen!AM28 & \" nootjes en chips\",\"\")","v":""},{"$nulls":19},{"$f":"matrixen!#REF!","v":{"$error":"#REF!"}},{"$nulls":10},{"$f":"matrixen!AM27","v":"Bord met olijven, kaasjes en salamietjes"}]
[{"$nulls":5},{"$f":"HLOOKUP($B$13,matrixen!$T$14:$AB$28,14,FALSE)","v":0},{"$nulls":20},{"$f":"matrixen!B22","v":0},{"$nulls":10},{"$f":"matrixen!AM28","v":"Bord met 3 tapenades (tonijn / pesto spread rosso /zoete peper roomkaas)"}]
[{"$nulls":5},{"$f":"HLOOKUP($B$13,matrixen!$T$14:$AB$28,15,FALSE)","v":0},{"$nulls":20},{"$f":"matrixen!B23","v":"Schuimwijn van het huis (reeds inbegrepen)"},{"$nulls":10},{"$f":"matrixen!AM29","v":"WARM: mini hot-dog"}]
[{"$nulls":26},{"$f":"matrixen!B24","v":"Cava"},{"$nulls":10},{"$f":"matrixen!AM30","v":"Breydelspek met mosterdroomsaus"}]
[null,"Stel zelf uw koud buffet samen!",{"$nulls":24},{"$f":"matrixen!B25","v":"Champagne"},{"$nulls":10},{"$f":"matrixen!AM31","v":"aperoglaasje scampi"}]
[null,"In elk buffet zijn steeds groenten voorzien,  koude aardappelen en/of aardappel in de pel en de schotels worden versierd met fruit. Ook de sausjes zijn inbegrepen.",{"$nulls":24},{"$f":"matrixen!B26","v":0},{"$nulls":10},{"$f":"matrixen!AM32","v":"Warme dagvis met curry"}]
[null,"Afhankelijk van de soort ingrediënten die u kiest, verandert de prijs van het buffet. U mag elk ingrediënt meermaals aanduiden als u graag van iets een grotere portie heeft .",{"$nulls":35},{"$f":"matrixen!AM33","v":"een gevuld toastcupje"}]
[null,"Wij stellen voor om 12 ingrediënten te kiezen, voor een evenwichtig buffet. Meer of minder mag ook, het gewicht per persoon, per portie blijft steeds gelijk.",{"$nulls":24},{"$f":"matrixen!B44","v":"Maak hier uw keuze voor extra hapjes bij het aperitief"},{"$nulls":10},{"$f":"matrixen!AM34","v":"oester met champagnesaus "}]
[null,"Meer info: ongeacht of u veel of weinig ingrediënten aanduidt, u bekomt steeds een even grote portie per persoon. Dus hoe meer ingrediënten u selecteert, hoe kleiner de hoeveelheid per soort op het buffet wordt.",{"$nulls":24},{"$f":"matrixen!B45","v":"Nootjes, chips en zoutkoekjes zoveel u wenst,  per pers."},{"$nulls":10},{"$f":"matrixen!AM35","v":"garnaal in filo"}]
[null,"Indien niet duidelijk, bel of mail ons voor meer info. 0475/618058 of info@katelijnenhof.be.",{"$nulls":24},{"$f":"matrixen!B46","v":"Rauwe groenten (wortel, bloemkool, cocktailsaus) prijs per persoon:"},{"$nulls":10},{"$f":"matrixen!AM36","v":"mini croque"}]
[{"$nulls":26},{"$f":"matrixen!B47","v":"Warme toostjes per stuk"},{"$nulls":10},{"$f":"matrixen!AM37","v":"mini loempia"}]
[null,"Kies hier eerst uw aardappelbereiding",{"$nulls":24},{"$f":"matrixen!B48","v":"Koude toostjes per stuk"},{"$nulls":10},{"$f":"matrixen!AM38","v":"mini kippenboutje"}]
[null,"Koude aardappelen",null,{"$f":"VLOOKUP(B36,matrixen!B85:G88,6,FALSE)","v":"inbegrepen"},{"$nulls":22},{"$f":"matrixen!B49","v":"aperitiefglaasjes per stuk"},{"$nulls":10},{"$f":"matrixen!AM39","v":"Gepaneerde garnalen butterfly"}]
[null,"Koude aardappelen",{"$nulls":24},{"$f":"matrixen!B50","v":"Oesters per stuk warm of koud"},{"$nulls":10},{"$f":"matrixen!AM40","v":"SOEP van kreeft"}]
[null,"Selecteer hier de samenstelling van uw buffet.  Indien u bij onderstaande lijst blijft, kost het buffet de basisprijs:",null,{"$f":"matrixen!B118","v":{"v":31,"d":"31.00"}},null,{"$f":"\"Selecteert u één of meer van onderstaande specialiteiten, is er een supplement van \"& matrixen!E118 &\" euro pp t.o.v. de basisprijs\"","v":"Selecteert u één of meer van onderstaande specialiteiten, is er een supplement van 5 euro pp t.o.v. de basisprijs"},{"$nulls":20},{"$f":"matrixen!B51","v":"wachtbordje met vispasteitje"},{"$nulls":10},{"$f":"matrixen!AM41","v":"Aspergeroomsoep met koornbloemblaadjes"}]
[1,"Kies uit deze vlees- of visspecialiteiten",null,null,1,"supplement 1",{"$f":"IF(F39<> \"supplement 1\",1,0)","v":0},{"$f":"IF(G39+G40+G41+G42+G43+G44+G45+G46+G47>0,matrixen!E118,0)","v":0},null,"U mag tegelijk ook ",{"$nulls":16},{"$f":"matrixen!B52","v":"wachtbordje van reuzentoost met gerookte zalm"},{"$nulls":10},{"$f":"matrixen!AM42","v":"Pompoensoep (sept. okt. nov.)"}]
[2,"Kies uit deze vlees- of visspecialiteiten",null,null,2,"supplement 1",{"$f":"IF(F40<> \"supplement 1\",1,0)","v":0},{"$f":"IF(D50>0,matrixen!E118,0)","v":0},null,"uit de vorige categorie kiezen",{"$nulls":16},{"$f":"matrixen!B53","v":"wachtbordje van lauw slaatje met gerookte zalm en scampi's"},{"$nulls":10},{"$f":"matrixen!AM43","v":"Kervelroomsoep met gerookte eend"}]
[3,"Kies uit deze vlees- of visspecialiteiten",null,null,3,"supplement 1",0,{"$f":"H39-H40","v":0},{"$nulls":18},{"$f":"matrixen!B54","v":0},{"$nulls":10},{"$f":"matrixen!AM44","v":"Preiroomsoep met broccoligarnituur en gebakken spekjes"}]
[4,"Kies uit deze vlees- of visspecialiteiten",null,{"$f":"IF(H41>0,H41,0)","v":{"v":0,"d":"0.00"}},4,"supplement 1",0,{"$nulls":19},{"$f":"matrixen!B55","v":0},{"$nulls":10},{"$f":"matrixen!AM45","v":"Soepje van boschampignons met gerookte paling"}]
[5,"Kies uit deze vlees- of visspecialiteiten",null,null,5,"supplement 1",0,{"$nulls":19},{"$f":"matrixen!B56","v":0},{"$nulls":10},{"$f":"matrixen!AM46","v":0}]
[6,"Kies uit deze vlees- of visspecialiteiten",null,null,6,"supplement 1",0,{"$nulls":19},{"$f":"matrixen!B85","v":"Koude aardappelen"},{"$nulls":10},{"$f":"matrixen!AM47","v":0}]
[7,"Kies uit deze vlees- of visspecialiteiten",null,null,7,"supplement 1",0,{"$nulls":19},{"$f":"matrixen!B86","v":"Aardappel in de pel"}]
[8,"Kies uit deze vlees- of visspecialiteiten",null,null,8,"supplement 1",0,{"$nulls":19},{"$f":"matrixen!B87","v":"1/2 koude aardappelen en 1/2 aardappel in de pel"}]
[9,"Kies uit deze vlees- of visspecialiteiten",null,null,9,"supplement 1",0,{"$nulls":19},{"$f":"matrixen!B88","v":"frietjes (supplement)"}]
[10,"Kies uit deze vlees- of visspecialiteiten",{"$nulls":3},{"$f":"\"Selecteert u één of meer van onderstaande specialiteiten, is er een supplement van \" & matrixen!H118 & \" euro pp t.o.v. de basisprijs\"","v":"Selecteert u één of meer van onderstaande specialiteiten, is er een supplement van 8,5 euro pp t.o.v. de basisprijs"}]
[11,"Kies uit deze vlees- of visspecialiteiten",{"$nulls":3},"U mag tegelijk ook uit beide vorige categoriën kiezen.",{"$nulls":20},{"$f":"matrixen!B97","v":"Kies uit deze vlees- of visspecialiteiten"}]
[12,"Kies uit deze vlees- of visspecialiteiten",null,{"$f":"IF(H50>0,matrixen!H118,0)","v":{"v":0,"d":"0.00"}},1,"supplement 2",{"$f":"IF(F50<> \"supplement 2\",1,0)","v":0},{"$f":"IF(G50+G51+G52>0,11,0)","v":0},{"$nulls":18},{"$f":"matrixen!B98","v":"tonijnsla"}]
[null,"Kies uit deze vlees- of visspecialiteiten",null,null,2,"supplement 2",{"$f":"IF(F51<> \"supplement 2\",1,0)","v":0},{"$nulls":19},{"$f":"matrixen!B99","v":"vispastei"}]
[{"$nulls":4},3,"supplement 2",{"$f":"IF(F52<> \"supplement 2\",1,0)","v":0},{"$nulls":19},{"$f":"matrixen!B100","v":"koolvis"}]
[{"$nulls":5},"supplement 1",{"$nulls":20},{"$f":"matrixen!B101","v":"halve tomaat belegd met krabsla"}]
[null,"Selecteer hier uw formule van de dranken tijdens het buffet.",{"$nulls":3},"supplement 2",{"$nulls":20},{"$f":"matrixen!B102","v":"pandalusgarnalen"}]
[null,"Huiswijn, bieren en frisdranken als forfait",null,{"$f":"VLOOKUP(B55,matrixen!B124:M126,12,FALSE)","v":{"v":2.8,"d":"2.80"}},{"$nulls":22},{"$f":"matrixen!B103","v":"haring met dille"}]
[null,"Huiswijn, bieren en frisdranken als forfait",{"$nulls":24},{"$f":"matrixen!B104","v":"américain préparé"}]
[{"$nulls":5},"extra info",{"$nulls":20},{"$f":"matrixen!B105","v":"varkensgebraad"}]
[null,"Selecteer hier uw dessert.",{"$nulls":24},{"$f":"matrixen!B106","v":"salami"}]
[null,"Nog geen dessert geselecteerd",null,{"$f":"VLOOKUP(B59,matrixen!B127:I150,8,FALSE)","v":{"v":0,"d":"0.00"}},null,{"$f":"VLOOKUP($B$59,dessert,10,FALSE)","v":0},{"$nulls":20},{"$f":"matrixen!B107","v":"gekookte achterham"}]
[null,"Nog geen dessert geselecteerd",{"$nulls":3},{"$f":"VLOOKUP($B$59,dessert,11,FALSE)","v":0},{"$nulls":20},{"$f":"matrixen!B108","v":"hennepot"}]
[null,{"$f":"IF(B105=matrixen!B195,\"Kies hier nu een aantal dessertjes. 4 zijn reeds inbegrepen. Extra aan € \" &matrixen!I191&\",00/stuk. U selecteerde er tot nu: \"&COUNTA(B62:B68),\"\")","v":"Kies hier nu een aantal dessertjes. 4 zijn reeds inbegrepen. Extra aan € ,00/stuk. U selecteerde er tot nu: 0"},{"$nulls":3},{"$f":"VLOOKUP($B$59,dessert,12,FALSE)","v":0},{"$nulls":20},{"$f":"matrixen!B109","v":"vleespastei"}]
[{"$nulls":5},{"$f":"VLOOKUP($B$59,dessert,13,FALSE)","v":0},{"$nulls":20},{"$f":"matrixen!B110","v":"hoofdvlees"}]
[]
[]
[{"$nulls":3},{"$f":"IF(COUNTA(B62:B68)*matrixen!I128 - IF(B59=matrixen!B132,matrixen!I128*4,0)<0,0,COUNTA(B62:B68)*matrixen!I128 - IF(B59=matrixen!B132,matrixen!I128*4,0))","v":{"v":0,"d":"0.00"}},null,{"$f":"IF(D65>0,\"U selecteerde meer dan 4 stuks dessert. Vandaar het supplement.\",\"\")","v":""}]
[]
[]
[]
[null,"Nog geen dessert geselecteerd"]
[]
[{"$nulls":5},{"$f":"VLOOKUP($B$59,dessert,14,FALSE)","v":0},{"$nulls":20},{"$f":"matrixen!B111","v":"stukjes kippebout"}]
[{"$nulls":5},{"$f":"VLOOKUP($B$59,dessert,15,FALSE)","v":0},{"$nulls":20},{"$f":"matrixen!B112","v":"hespeworst"}]
[null,"Selecteer hier uw koffie",{"$nulls":24},{"$f":"matrixen!B113","v":"gepocheerde zalm"}]
[null,"Nog geen keuze gemaakt",null,{"$f":"VLOOKUP(B74,matrixen!B154:I157,8,FALSE)","v":{"v":0,"d":"0.00"}},{"$nulls":5},{"$f":"\"Wenst u exclusiviteit voor het volledige domein mits meerprijs van € \" &matrixen!F222& \" ? \"","v":"Wenst u exclusiviteit voor het volledige domein mits meerprijs van € 750 ? "},"nee",{"$f":"IF(K74=\"ja\",matrixen!F222,0)","v":0},{"$nulls":14},{"$f":"matrixen!B114","v":"gerookte bacon"}]
[null,"Nog geen keuze gemaakt",{"$nulls":24},{"$f":"matrixen!B115","v":"gepocheerde forel"}]
[null,"Alle drank na de maaltijd komt op één rekening en wordt door de organisator van het feest betaald",null,{"$f":"VLOOKUP(B76,matrixen!A159:P161,15,FALSE)","v":{"v":0,"d":"0.00"}},{"$f":"VLOOKUP(B76,matrixen!A159:P161,16,FALSE)","v":"één rekening"},"Vegetariërs: ","nee","Speciale dieten: ","nee","Halal bereidingen: ","nee",{"$nulls":15},{"$f":"matrixen!B116","v":"makreel met peper"}]
[null,"Alle drank na de maaltijd komt op één rekening en wordt door de organisator van het feest betaald"]
[null,"Wijze van betaling:",{"$nulls":3},"Feest met discobar: ","nee","Allergenen: ","nee",{"$f":"IF($I$78=\"ja\",matrixen!A165,\"\")","v":""},{"$nulls":16},{"$f":"matrixen!E97","v":"supplement 1"}]
[null,"Betaling op de dag zelf (cash of bancontact), u bekomt 2% korting op het totaal",{"$nulls":7},{"$f":"IF($I$78=\"ja\",matrixen!A166,\"\")","v":""},{"$nulls":16},{"$f":"matrixen!E98","v":"tomaat met grijze garnalen"}]
[{"$nulls":7},{"$f":"IF(G78=\"ja\",matrixen!A169,\"\")","v":""},null,{"$f":"IF($I$78=\"ja\",matrixen!A167,\"\")","v":""},{"$nulls":16},{"$f":"matrixen!E99","v":"gerookte zalm"}]
[null,"Om uw selecties te bewaren, gelieve ze op te slaan op uw harde schijf. (opslaan als)",{"$nulls":24},{"$f":"matrixen!E100","v":"parmaham"}]
[null,"Om een aanvraag naar ons te versturen stuur een mail naar info@katelijnenhof met in bijlage dit bestand vanaf uw harde schijf.",{"$nulls":24},{"$f":"matrixen!E101","v":"langoustines 1 pp"}]
[{"$nulls":4},"Eventuele datum van het feest:",null,null,"Overzicht van uw selectie:",{"$nulls":18},{"$f":"matrixen!E102","v":"gebakken scampi's 2 pp"}]
[{"$nulls":5},"Het exacte aantal personen en de tafelschikking dient ons meegedeeld te worden de vrijdag van het weekend voordien.",null,{"$f":"IF(L84>0,B13,\"\")","v":""},{"$nulls":3},{"$f":"D13","v":{"v":0,"d":"0.00"}},{"$nulls":14},{"$f":"matrixen!E103","v":"roastbeef"}]
[{"$nulls":4},"geraamd aantal volwassenen:",null,null,{"$f":"IF(L85>0,B100,\"\")","v":""},{"$f":"IF(L85>0,\"geldt alleen bij recepties!!!\",\"\")","v":""},null,null,{"$f":"D100","v":{"v":0,"d":"0.00"}},{"$nulls":14},{"$f":"matrixen!E104","v":"kabeljauw"}]
[{"$nulls":4},"geraamd aantal kinderen 6 j. t.e.m. 11 jr. 11 maand:",null,null,{"$f":"IF(L86>0,B106,\"\")","v":""},{"$nulls":3},{"$f":"D106","v":{"v":0,"d":"0.00"}},{"$nulls":14},{"$f":"matrixen!E105","v":"gerookte heilbot"}]
[{"$nulls":4},"geraamd aantal kinderen 3 j. t.e.m. 5 j. 11 maand:",null,null,{"$f":"IF(L87>0,B61,\"\")","v":""},{"$nulls":3},{"$f":"D107","v":{"v":0,"d":"0.00"}},{"$nulls":14},{"$f":"matrixen!E106","v":"gerookte forelfilet"}]
[{"$nulls":4},"geraamd aantal kinderen  0 t.e.m. 2 j. 11 maand:",null,null,{"$f":"IF(L88>0,B62,\"\")","v":""},{"$nulls":3},{"$f":"D108","v":{"v":0,"d":"0.00"}}]
[{"$nulls":7},{"$f":"IF(L89>0,B63,\"\")","v":""},{"$nulls":3},{"$f":"D109","v":{"v":0,"d":"0.00"}},{"$nulls":14},{"$f":"matrixen!H97","v":"supplement 2"}]
[{"$nulls":4},"uur van aankomst:",null,null,{"$f":"IF(L90>0,B64,\"\")","v":""},{"$nulls":3},{"$f":"D110","v":{"v":0,"d":"0.00"}},{"$nulls":14},{"$f":"matrixen!H98","v":"foie gras"}]
[{"$nulls":4},"aan tafel om:",null,null,{"$f":"B36","v":"Koude aardappelen"},{"$nulls":3},{"$f":"D36","v":"inbegrepen"},{"$nulls":14},{"$f":"matrixen!H99","v":"oesters 2pp"}]
[{"$nulls":4},"Uw naam:",null,null,"Groenten en sausen ",{"$nulls":3},"inbegrepen",{"$nulls":14},{"$f":"matrixen!H100","v":"kreeft"}]
[{"$nulls":4},"Adres:",null,null,"Basisprijs koud buffet (gedetailleerde samenstelling zie hoger):",{"$nulls":3},{"$f":"D38","v":{"v":31,"d":"31.00"}}]
[{"$nulls":4},"Stad:",null,null,{"$f":"IF(L94>0,\"U selecteerde ook uit supplement 1\",\"\")","v":""},{"$nulls":3},{"$f":"D42","v":{"v":0,"d":"0.00"}},{"$nulls":14},{"$f":"matrixen!B124","v":"Huiswijn, bieren en frisdranken als forfait"}]
[{"$nulls":4},"Tel nr:",null,null,{"$f":"IF(L95>0,\"U selecteerde ook uit supplement 2\",\"\")","v":""},{"$nulls":3},{"$f":"D50","v":{"v":0,"d":"0.00"}},{"$nulls":14},{"$f":"matrixen!B125","v":"Domaine Joel Delauny Touraine  en/of Château Reynier, Bordeaux superieur,  bieren en frisdranken"}]
[{"$nulls":4},"email:",null,null,{"$f":"B55","v":"Huiswijn, bieren en frisdranken als forfait"},{"$nulls":3},{"$f":"D55","v":{"v":2.8,"d":"2.80"}},{"$nulls":14},{"$f":"matrixen!B126","v":0}]
[{"$nulls":4},"geraamde totalen uit andere rekenbladen:",null,null,{"$f":"IF(L97>0,B59,\"\")","v":""},{"$nulls":3},{"$f":"D59","v":{"v":0,"d":"0.00"}}]
[null,"Mogelijke supplementen bij de recepties",null,null,"(vb: kindermenus)",null,null,{"$f":"IF(L98>0,B74,\"\")","v":""},{"$nulls":3},{"$f":"D74","v":{"v":0,"d":"0.00"}},{"$nulls":14},{"$f":"matrixen!B127","v":0}]
[{"$nulls":7},"Keuze drank na de maaltijd:",{"$nulls":3},{"$f":"E76","v":"één rekening"},{"$nulls":14},{"$f":"matrixen!B128","v":"supplement per stukje gebak:"}]
[null,"Schuimwijn van het huis (reeds inbegrepen)",null,{"$f":"VLOOKUP(B100,matrixen!B23:I26,8,FALSE)","v":{"v":0,"d":"0.00"}},{"$nulls":22},{"$f":"matrixen!B129","v":0}]
[{"$nulls":4},"Geschat factuurtotaal:",{"$f":"Reservatievoorstel!I12","v":{"v":0,"d":"€ 0.00"}},null,"Gaat u akkoord met de algemene verkoopsvoorwaarden?",null,null,"ja",{"$nulls":15},{"$f":"matrixen!B130","v":"Nog geen dessert geselecteerd"}]
[{"$nulls":5},"(Gebaseerd op de door u ingebrachte gegevens)",{"$nulls":3},"Voorkeur tafelschikking:","geen voorkeur",{"$nulls":15},{"$f":"matrixen!B131","v":"IJstaart ambachtelijk, speciale vorm, smaak naar keuze"}]
[{"$nulls":5},"korting bij contante betaling:",{"$f":"F101*0.02","v":{"v":0,"d":"€ 0.00"}},null,null,"reden feest:",{"$nulls":16},{"$f":"matrixen!B132","v":"Stel hieronder uw mini dessertbordje samen met minstens 4 dessertjes"}]
[{"$nulls":5},"saldo:",{"$f":"F101-G103","v":{"v":0,"d":"€ 0.00"}},null,null,"Opmerking:",{"$nulls":16},{"$f":"matrixen!B133","v":"Coupe met vers fruit en verse slagroom."}]
[{"$nulls":4},{"$f":"SUMIF(B106:B110,\"warme toostjes per stuk\",D106:D110)","v":0},{"$f":"IF($E$105>0,matrixen!B58,\"\")","v":""},{"$f":"SUMIF(B106:B110,\"koude toostjes per stuk\",D106:D110)","v":0},{"$f":"IF($G$105>0,matrixen!E58,\"\")","v":""},{"$f":"SUMIF(B106:B110,\"aperitiefglaasjes per stuk\",D106:D110)","v":0},"Wenst u een factuur?","nee",{"$nulls":15},{"$f":"matrixen!B134","v":"Aardbeiensoepje met sinaasappel in seizoen"}]
[{"$nulls":5},{"$f":"IF($E$105>0,matrixen!B59,\"\")","v":""},null,{"$f":"IF($G$105>0,matrixen!E59,\"\")","v":""},null,{"$f":"IF($I$105>0,matrixen!H59,\"\")","v":""},{"$f":"IF(K105=\"ja\",\"Gelieve uw facturatiegegevens bij opmerkingen in te vullen.\",\"\")","v":""},{"$nulls":15},{"$f":"matrixen!B135","v":"Coupe met aardbeien en verse slagroom."}]
[{"$nulls":5},{"$f":"IF($E$105>0,matrixen!B60,\"\")","v":""},null,{"$f":"IF($G$105>0,matrixen!E60,\"\")","v":""},null,{"$f":"IF($I$105>0,matrixen!H60,\"\")","v":""},{"$nulls":16},{"$f":"matrixen!B136","v":"Dame blanche"}]
[{"$nulls":5},{"$f":"IF($E$105>0,matrixen!B61,\"\")","v":""},null,{"$f":"IF($G$105>0,matrixen!E61,\"\")","v":""},null,{"$f":"IF($I$105>0,matrixen!H61,\"\")","v":""},{"$nulls":16},{"$f":"matrixen!B137","v":"- frambozentaart"}]
[{"$nulls":5},{"$f":"IF($E$105>0,matrixen!B62,\"\")","v":""},null,{"$f":"IF($G$105>0,matrixen!E62,\"\")","v":""},null,{"$f":"IF($I$105>0,matrixen!H62,\"\")","v":""},{"$nulls":16},{"$f":"matrixen!B138","v":"- progres"}]
[{"$nulls":5},{"$f":"IF($E$105>0,matrixen!B63,\"\")","v":""},null,{"$f":"IF($G$105>0,matrixen!E63,\"\")","v":""},null,{"$f":"IF($I$105>0,matrixen!H63,\"\")","v":""},{"$nulls":16},{"$f":"matrixen!B139","v":"- fruitgebakje"}]
[{"$nulls":5},{"$f":"IF($E$105>0,matrixen!B64,\"\")","v":""},null,{"$f":"IF($G$105>0,matrixen!E64,\"\")","v":""},{"$nulls":18},{"$f":"matrixen!B140","v":"- biscuit crème fraiche met coulis"}]
[{"$nulls":26},{"$f":"matrixen!B141","v":"- warme appeltaart met een bolletje ijs"}]
[{"$nulls":26},{"$f":"matrixen!B142","v":"- zwarte woudtaart"}]
[{"$nulls":26},{"$f":"matrixen!B143","v":"Sabayon met rood fruit"}]
[{"$nulls":26},{"$f":"matrixen!B144","v":0}]
[{"$nulls":26},{"$f":"matrixen!B145","v":"Basis dessertbuffet met:"}]
[{"$nulls":26},{"$f":"matrixen!B146","v":"Uitgebreid dessertbuffet met:"}]
[{"$nulls":26},{"$f":"matrixen!B147","v":"Uitgebreid en luxueus dessertbuffet met:"}]
[]
[{"$nulls":26},{"$f":"matrixen!B154","v":"Nog geen keuze gemaakt"}]
[{"$nulls":26},{"$f":"matrixen!B155","v":"Koffie 3 X bediend"}]
[{"$nulls":26},{"$f":"matrixen!B156","v":"Koffie 3 X bediend met koekjes"}]
[{"$nulls":26},{"$f":"matrixen!B157","v":"Koffie 3 X bediend met pralines"}]
[]
[{"$nulls":26},{"$f":"matrixen!A159","v":"Alle drank na de maaltijd komt op één rekening en wordt door de organisator van het feest betaald"}]
[{"$nulls":26},{"$f":"matrixen!A160","v":"Elke gast die na de maaltijd een drankje bestelt rekent direct af aan de bar"}]
[{"$nulls":26},{"$f":"matrixen!A161","v":"Forfait voor drank naar believen (alle bieren en frisdranken van de drankkaart in de zaal) na een maaltijd. pp: "}]
[]
[{"$nulls":26},{"$f":"matrixen!A187","v":"ja"}]
[{"$nulls":26},{"$f":"matrixen!A188","v":"nee"}]
[]
[{"$nulls":26},"geen voorkeur"]
[{"$nulls":26},"zoveel mogelijk ronde tafels van 6 à 8 personen"]
[{"$nulls":26},"liever lange tafels ev. In U-vorm of H-vorm."]
[]
[]
[{"$nulls":26},{"$f":"matrixen!A380","v":"Betaling op de dag zelf (cash of bancontact), u bekomt 2% korting op het totaal"}]
[{"$nulls":26},{"$f":"matrixen!A381","v":"Storting op BE 48 4631 1391 2127 min. 7 dagen voor het feest, 2% korting"}]
[{"$nulls":26},{"$f":"matrixen!A382","v":"Betaling na het feest. Gelieve 40 % voorschot te storten op BE48 4631 1391 2127. Geen korting."}]

{"sheet":"matrixen","index":1,"n_rows":382,"n_cols":39,"rows_kept":382,"hidden":true}
[null,"2020-12-31",{"$nulls":9},"lam, zwanen enz..  . Met foto suppl.",{"$nulls":3},{"v":15,"d":"15.00"}]
[{"$nulls":11},"Foto op de taart: suppl. € ",null,null,{"v":0.7,"d":"0.70"},"per stuk taart en € ",null,{"v":10,"d":"10.00"}," per foto"]
[]
[]
[]
[null,"Minimaal verbruik feest",null,null,950]
[]
[]
[]
[]
[null,"Maak in dit vak uw keuze voor het aperitief"]
[null,"1 aperitief per persoon",{"$nulls":6},{"v":6,"d":"€ 6.00"}]
[null,"2 aperitieven per persoon",{"$nulls":6},{"v":10,"d":"€ 10.00"}]
[null,"Receptie E",{"$nulls":6},{"v":12.600000000000001,"d":"€ 12.60"},null,"Maak in dit vak uw keuze voor het aperitief","1 aperitief per persoon","2 aperitieven per persoon","Receptie E","Receptie A",0,0,0,0,"Maak in dit vak uw keuze voor het aperitief","1 aperitief per persoon","2 aperitieven per persoon",0,"Receptie E",0,0,0,"Receptie A"]
[null,"Receptie A",{"$nulls":6},{"v":10,"d":"€ 10.00"},null,null,"1 per persoon,  ","2 per persoon,  ","Uitgebreide receptie","Basis receptie.",0,0,0,0,null,"vrije keuze","vrije keuze",0,"dranken inbegrepen",0,0,0,"dranken inbegrepen",{"$nulls":10},"Keuze aperitiefhapjes:"]
[null,0,{"$nulls":6},{"v":0,"d":"€ 0.00"},null,null,"eventueel tweede wordt","eventueel derde wordt","met 4 aperitiefglaasjes","Dranken 2 uur inbegrepen.",0,0,0,0,null,"Porto rood","Porto rood",0,"gedurende 2 uur",0,0,0,"gedurende 2 uur",{"$nulls":10},"KOUD: crunchy sushi"]
[null,0,{"$nulls":6},{"v":0,"d":"€ 0.00"},null,null,"direct afgerekend of","direct afgerekend of"," en drank gedurende 2 uur.","Met tapenades:",null,0,0,null,null,"Martini","Martini",0,"met huis schuimwijn,",0,0,0,"met huis schuimwijn,",{"$nulls":10},"luzerne met gerookte zalm, eitjes van vliegende vis in wasabi"]
[null,0,{"$nulls":6},{"v":0,"d":"€ 0.00"},null,null,"komt op 1 rekening","komt op 1 rekening",0,"tonijn / pesto spread rosso /zoete peper roomkaas",null,0,{"$nulls":3},"Kir","Kir",0,"frisdranken en",0,0,0,"frisdranken en",{"$nulls":10},"preischeuten met tijgergarnalen en mini tomaat"]
[null,0,{"$nulls":6},{"v":0,"d":"€ 0.00"},{"$nulls":5},0,{"$nulls":5},"Frisdrank","Frisdrank",0,"bieren naar believen.",null,0,0,"bieren naar believen.",{"$nulls":10},"aperoglaasje parmaham met meloenbolletjes"]
[{"$nulls":14},0,{"$nulls":5},"Bieren","Bieren",0,0,null,0,0,0,{"$nulls":10},"ganache van foie gras met frambozenconfituur en amandelbrood"]
[{"$nulls":14},0,{"$nulls":5},"nootjes en chips inbegr.","nootjes en chips inbegr.",0,"Assortiment van 4  ",null,0,0,"Ook inbegrepen:",{"$nulls":10},"aperoglaasje parmaham met espuma van mango"]
[{"$nulls":12},"Roomijs ",{"$nulls":7},"TIP:","TIP:",0,"aperitiefglaasjes",null,0,0,"tapenades",{"$nulls":10},"verse oester"]
[null,"Schuimwijn van het huis (reeds inbegrepen)",{"$nulls":6},{"v":0,"d":"€ 0.00"},{"$nulls":3},"Bruine chocolademousse",{"$nulls":7},"Receptie A","Receptie A",0,"inbegrepen.",null,0,0,"nootjes en chips",{"$nulls":10},"Taboulé met gerookte forel"]
[null,"Cava",{"$nulls":6},{"v":3.25,"d":"€ 3.25"},{"$nulls":3},"Pasteis de nata",{"$nulls":7},"kost evenveel als","kost evenveel als",0,"Maak uw keuze",null,0,0,0,{"$nulls":10},"Haringhapje met curry"]
[null,"Champagne",{"$nulls":6},{"v":7,"d":"€ 7.00"},{"$nulls":3},"Chocoladebavarois",{"$nulls":7},"2 aperitieven pp.","2 aperitieven pp.",0,"hier rechts! =>",null,0,0,{"$nulls":11},"Mini bagel met zalm en kruidenkaas"]
[{"$nulls":12},"Miserable",{"$nulls":7},"En dan is de drank naar","En dan is de drank naar",0,0,null,0,0,{"$nulls":11},"BORD: op tafel met rauwe groenten en cocktailsaus (wortel, bloemkool, radijs)"]
[{"$nulls":12},"glaasje fruitsla met perensorbet",{"$nulls":7},"believen!","believen!",0,"Liever meer dan 4 hapjes? Geen probleem.",null,0,0,{"$nulls":11},"Bord met olijven, kaasjes en salamietjes"]
[{"$nulls":12},"Witte chocolademousse ",{"$nulls":7},"En met tapenades!","En met tapenades!",0,"Het supplement bedraagt € 1,60 per hapje",null,0,0,{"$nulls":11},"Bord met 3 tapenades (tonijn / pesto spread rosso /zoete peper roomkaas)"]
[{"$nulls":12},"Roomsoes met warme chocoladesaus ",{"$nulls":25},"WARM: mini hot-dog"]
[null,"Dessertbuffet zonder maaltijd: ",{"$nulls":6},{"v":16.5,"d":"€ 16.50"},{"$nulls":3},"Tiramisu",{"$nulls":25},"Breydelspek met mosterdroomsaus"]
[null,"Koffie 3 X bediend",{"$nulls":6},{"v":2.5,"d":"€ 2.50"},{"$nulls":3},"Javanais",{"$nulls":25},"aperoglaasje scampi"]
[{"$nulls":12},"Gebak peer-caramel ",{"$nulls":25},"Warme dagvis met curry"]
[{"$nulls":12},"mini fruittaartje",{"$nulls":25},"een gevuld toastcupje"]
[null,"1 aperitief per persoon, vrije keuze",{"$nulls":6},{"v":6,"d":"€ 6.00"},{"$nulls":29},"oester met champagnesaus "]
[null,"Pineau des charentes wit",{"$nulls":6},{"v":6,"d":"€ 6.00"},{"$nulls":29},"garnaal in filo"]
[null,"Maison (basis safari)",{"$nulls":6},{"v":6,"d":"€ 6.00"},{"$nulls":29},"mini croque"]
[null,"Kir royale",{"$nulls":6},{"v":6,"d":"€ 6.00"},{"$nulls":29},"mini loempia"]
[null,"Sherry dry",{"$nulls":6},{"v":6,"d":"€ 6.00"},{"$nulls":29},"mini kippenboutje"]
[null,"Porto",{"$nulls":6},{"v":6,"d":"€ 6.00"},{"$nulls":29},"Gepaneerde garnalen butterfly"]
[null,"Martini (wit/rood)",{"$nulls":6},{"v":6,"d":"€ 6.00"},{"$nulls":29},"SOEP van kreeft"]
[null,"Kir",{"$nulls":6},{"v":6,"d":"€ 6.00"},{"$nulls":29},"Aspergeroomsoep met koornbloemblaadjes"]
[null,"Schuimwijn",{"$nulls":6},{"v":6,"d":"€ 6.00"},{"$nulls":29},"Pompoensoep (sept. okt. nov.)"]
[{"$nulls":38},"Kervelroomsoep met gerookte eend"]
[null,"Maak hier uw keuze voor extra hapjes bij het aperitief",{"$nulls":36},"Preiroomsoep met broccoligarnituur en gebakken spekjes"]
[null,"Nootjes, chips en zoutkoekjes zoveel u wenst,  per pers.",{"$nulls":6},"gratis",{"$nulls":29},"Soepje van boschampignons met gerookte paling"]
[null,"Rauwe groenten (wortel, bloemkool, cocktailsaus) prijs per persoon:",{"$nulls":6},{"v":1.6,"d":"€ 1.60"}]
[null,"Warme toostjes per stuk",{"$nulls":6},"fini"]
[null,"Koude toostjes per stuk",{"$nulls":6},"fini"]
[null,"aperitiefglaasjes per stuk",{"$nulls":6},{"v":1.6,"d":"€ 1.60"}]
[null,"Oesters per stuk warm of koud",{"$nulls":6},"fini"]
[null,"wachtbordje met vispasteitje",{"$nulls":6},{"v":4,"d":"€ 4.00"}]
[null,"wachtbordje van reuzentoost met gerookte zalm",{"$nulls":6},{"v":4,"d":"€ 4.00"}]
[null,"wachtbordje van lauw slaatje met gerookte zalm en scampi's",{"$nulls":6},{"v":6,"d":"€ 6.00"}]
[]
[]
[]
[]
[null,"Keuze warme toostjes",null,null,"Keuze koude toostjes",null,null,"Keuze aperoglaasjes"]
[null,"(bij reservatie te bepalen)",null,null,"(bij reservatie te bepalen)",null,null,"(bij reservatie te bepalen)"]
[null,"kippenbilletjes",null,null,"toost garnaal koud",null,null,"aperoglaasje eendenmousse"]
[null,"toostcupje",null,null,"toost gerookte zalm koud",null,null,"aperoglaasje gerookte zalm"]
[null,"garnaal in filo",null,null,"toost krabsla koud",null,null,"aperoglaasje mousse van krab"]
[null,"mini croque",null,null,"toost eendenpastei koud",null,null,"aperoglaasje tomaat / garnaal"]
[null,"scampi enz….",{"$nulls":5},"en nog veel mogelijkheden"]
[]
[]
[]
[]
[null,null,"uitgebreide fomule met toostjes in menuvorm (max 3uur)"]
[null,null,"“3 koude voorgerechtjes”"]
[null,null,"koud hapje met krabsla "]
[null,null,"koud hapje met gerookte zalm"]
[null,null,"koud hapje met grijze garnalen"]
[null,null,"“soepje”"]
[null,null,"1 mini soepje tomatenroom of vissoepje"]
[null,null,"“3 warme gerechtjes”"]
[null,null,"kippenboutje"]
[null,null,"mini loempia"]
[null,null,"mini croque monsieur"]
[null,null,"“2 dessertjes”"]
[null,null,"mini-brochetje met druifje, ananas en meloenbolletje"]
[null,null,"mini confituurtaartje"]
[]
[]
[null,"Koude aardappelen",{"$nulls":4},"inbegrepen"]
[null,"Aardappel in de pel",{"$nulls":4},"inbegrepen"]
[null,"1/2 koude aardappelen en 1/2 aardappel in de pel",{"$nulls":4},"inbegrepen"]
[null,"frietjes (supplement)",{"$nulls":4},{"v":1,"d":"1.00"}]
{"$rows_empty":8}
[1,"Kies uit deze vlees- of visspecialiteiten",null,1,"supplement 1",null,1,"supplement 2"]
[2,"tonijnsla",null,2,"tomaat met grijze garnalen",null,2,"foie gras"]
[3,"vispastei",null,3,"gerookte zalm",null,3,"oesters 2pp"]
[4,"koolvis",null,4,"parmaham",null,4,"kreeft"]
[5,"halve tomaat belegd met krabsla",null,5,"langoustines 1 pp"]
[6,"pandalusgarnalen",null,6,"gebakken scampi's 2 pp"]
[7,"haring met dille",null,7,"roastbeef"]
[8,"américain préparé",null,8,"kabeljauw"]
[9,"varkensgebraad",null,9,"gerookte heilbot"]
[10,"salami",null,10,"gerookte forelfilet"]
[11,"gekookte achterham"]
[12,"hennepot"]
[13,"vleespastei"]
[14,"hoofdvlees"]
[15,"stukjes kippebout"]
[16,"hespeworst"]
[17,"gepocheerde zalm"]
[18,"gerookte bacon",{"$nulls":3},"De aanpassing gebeurt ondertussen automatisch"]
[19,"gepocheerde forel"]
[20,"makreel met peper"]
[null,"basisprijs",null,null,"sup. Tov basisprijs",null,null,"sup. Tov basisprijs"]
[null,{"v":31,"d":"31.00"},null,null,{"v":5,"d":"5.00"},null,null,{"v":8.5,"d":"8.50"}]
[null,"Basisprijs buffet:",null,null,"Supplement \"koning\"",null,null,"Supplement \"keizer\""]
[]
[]
[]
[]
[null,"Huiswijn, bieren en frisdranken als forfait",{"$nulls":10},{"v":2.8,"d":"2.80"}]
[null,"Domaine Joel Delauny Touraine  en/of Château Reynier, Bordeaux superieur,  bieren en frisdranken",{"$nulls":10},{"v":7,"d":"7.00"}]
[]
[]
[null,"supplement per stukje gebak:",{"$nulls":6},{"v":1,"d":"1.00"},null,0]
[{"$nulls":10},0]
[null,"Nog geen dessert geselecteerd",{"$nulls":8},0]
[null,"IJstaart ambachtelijk, speciale vorm, smaak naar keuze",{"$nulls":6},{"v":5.3,"d":"5.30"}]
[null,"Stel hieronder uw mini dessertbordje samen met minstens 4 dessertjes",{"$nulls":6},{"v":3.9,"d":"3.90"},null,"Keuze: Roomijs en/of Bruine chocolademousse en/of Pasteis de nata en/of ","Chocoladebavarois en/of Miserable en/of glaasje fruitsla met perensorbet en/of ","Witte chocolademousse en/of Roomsoes met warme chocoladesaus en/of Tiramisu en/of ","Javanais en/of Gebak peer-caramel en/of mini fruittaartje."]
[null,"Coupe met vers fruit en verse slagroom.",{"$nulls":6},{"v":3.9,"d":"3.90"},null,"Vanilleijs, vers fruit en verse slagroom"]
[null,"Aardbeiensoepje met sinaasappel in seizoen",{"$nulls":6},{"v":3.9,"d":"3.90"},null,"Sinaasappelsap met grand marnier en daarin vers gesneden aardbeien (alleen in seizoen)"]
[null,"Coupe met aardbeien en verse slagroom.",{"$nulls":6},{"v":3.9,"d":"3.90"},null,"Vanilleijs, verse aardbeien en verse slagroom"]
[null,"Dame blanche",{"$nulls":6},{"v":3.9,"d":"3.90"},null,"Vanilleijs, verse slagroom,warme chocoladesaus."]
[null,"- frambozentaart",{"$nulls":6},5.75,null,"De lekkerste van alle gebakjes."]
[null,"- progres",{"$nulls":6},5.75,null,"Een klassieker."]
[null,"- fruitgebakje",{"$nulls":6},{"v":3.9,"d":"3.90"},null,"Klein maar fijn gebakje"]
[null,"- biscuit crème fraiche met coulis",{"$nulls":6},{"v":3.9,"d":"3.90"},null,"Vrij groot stuk met slagroom. Foto op de taart: suppl. € 0,7 per stuk taart en € 10 per foto "]
[null,"- warme appeltaart met een bolletje ijs",{"$nulls":6},{"v":3.9,"d":"3.90"},null,"Hier heb je zowel gebak als vanilleijs."]
[null,"- zwarte woudtaart",{"$nulls":6},5.75,null,"Biscuit met cacaopoeder in een tasje."]
[null,"Sabayon met rood fruit",{"$nulls":6},{"v":3.9,"d":"3.90"},null,"Sabayon, fruit en ijs"]
[null,{"v":0,"d":"0.00"},{"$nulls":6},{"v":0,"d":"0.00"}]
[null,"Basis dessertbuffet met:",{"$nulls":6},{"v":10,"d":"10.00"},null,"vers fruit, verschillende soorten sorbet, chocolademousse, roomijs","variatie van miserable, javanais, pasteis de nata, roomsoes, speculoostaart,","De samenstelling van het buffet kan verschillen, naargelang de grootte van de groep",null,null,"Belangrijk: De prijs van dit dessertbuffet geldt alleen indien voorafgegaan door een maaltijd!!"]
[null,"Uitgebreid dessertbuffet met:",{"$nulls":6},{"v":12,"d":"12.00"},null,"vers fruit, verschillende soorten sorbet, chocolademousse, roomijs","variatie van miserable, javanais, pasteis de nata, roomsoes, speculoostaart,","De samenstelling van het buffet kan verschillen, naargelang de grootte van de groep","assortiment van mini-bavarois (framboos-passie-zwarte woud-pistache-chocolade praliné)",null,"Belangrijk: De prijs van dit dessertbuffet geldt alleen indien voorafgegaan door een maaltijd!!"]
[null,"Uitgebreid en luxueus dessertbuffet met:",{"$nulls":6},{"v":14,"d":"14.00"},null,"vers fruit, verschillende soorten sorbet, chocolademousse, roomijs","variatie van miserable, javanais, pasteis de nata, roomsoes, speculoostaart,","De samenstelling van het buffet kan verschillen, naargelang de grootte van de groep","assortiment van mini-bavarois (framboos-passie-zwarte woud-pistache-chocolade praliné)","dessertglaasjes (framboos-amandel - trio chocolade - mango-caramel - chocolade praliné)","Belangrijk: De prijs van dit dessertbuffet geldt alleen indien voorafgegaan door een maaltijd!!"]
[]
[]
[]
[]
[]
[]
[null,"Nog geen keuze gemaakt"]
[null,"Koffie 3 X bediend",{"$nulls":5},"€ ",{"v":2.5,"d":"2.50"}]
[null,"Koffie 3 X bediend met koekjes",{"$nulls":5},"€ ",3.35]
[null,"Koffie 3 X bediend met pralines",{"$nulls":5},"€ ",{"v":3.9,"d":"3.90"}]
[]
["Alle drank na de maaltijd komt op één rekening en wordt door de organisator van het feest betaald",{"$nulls":14},"één rekening"]
["Elke gast die na de maaltijd een drankje bestelt rekent direct af aan de bar",{"$nulls":14},"direct afrekenen"]
["Forfait voor drank naar believen (alle bieren en frisdranken van de drankkaart in de zaal) na een maaltijd. pp: ",{"$nulls":13},{"v":16,"d":"16.00"},{"v":16,"d":"16.00"},"alletwee de prijzen nodig!"]
["Indien  er geen volwaardige maaltijd wordt genomen, dienen er minstens 4 belegde broodjes genomen te worden en verhoogt het drankforfait tot € 28,00 ",{"$nulls":14},{"v":28,"d":"28.00"}]
["'s middags tot 21 u - 's avonds onbeperkt. Let op! Artikel 8 van de verkoopsvoorwaarden (zie laatste bladzijde) kan hier van toepassing zijn !!!!"]
[]
["Neem contact op met de zaakvoerder op tel nr 0475/618058",{"$nulls":14},"x"]
["om hier zeker geen misverstanden over te hebben!"]
[]
[]
["Verbruik van DJ  ten laste van de klant"]
[]
["Voor onze vegetarische klanten:"]
[]
["- Voor onze vegetarische klanten bereiden wij graag een aparte schotel. "]
["Wij vragen wel met aandrang om op voorhand te melden als er vegetariërs zijn."]
["Zij eten mee aan de prijs van de rest van de groep."]
[]
[]
[]
[]
["Mensen met een speciaal dieet:"]
[]
["Wij houden rekening met speciale wensen van mensen die een dieet volgen, "]
["maar alleen indien op voorhand gemeld. "]
[]
["Halal kan ook, onder toezicht van een moslim bereid."]
[]
["ja"]
["nee"]
{"$rows_empty":33}
["Exclusiviteit voor beide zalen:",{"$nulls":4},750]
{"$rows_empty":157}
["Betaling op de dag zelf (cash of bancontact), u bekomt 2% korting op het totaal"]
["Storting op BE 48 4631 1391 2127 min. 7 dagen voor het feest, 2% korting"]
["Betaling na het feest. Gelieve 40 % voorschot te storten op BE48 4631 1391 2127. Geen korting."]

{"sheet":"Algemene verkoopsvoorwaarden","index":2,"n_rows":63,"n_cols":13,"rows_kept":63}
[null,"Algemene verkoopsvoorwaarden:"]
[null,"1) Onze facturen zijn contant te betalen bij levering van de goederen. Bijgevolg zal in geval van laattijdige betaling"]
[null,"van rechtswege en zonder voorafgaande ingebrekestelling een intrest aangerekend worden van 12% per jaar op de "]
[null,"bedragen, verschuldigd acht dagen na de vervaldag van de facturen. Tevens zal bij gebrek aan betaling na "]
[null,"aanmaning bij gewone brief, het verschuldigde bedrag van rechtswege verhoogd worden met een forfaitaire"]
[null,"vergoeding van 12 % met een minimum van € 50  voor bijkomende administratieve kosten, debiteurenbewaking "]
[null,"en commerciële stoornissen. Wij behouden ons het recht voor op elk moment de leveringen te staken. Elke "]
[null,"klacht over de kwaliteit van de geleverde goederen moet uiterlijk 24 uur na de levering worden overgemaakt. "]
[null,"Klachten in verband met facturatie kunnen slechts in aanmerking worden genomen zo zij binnen de acht "]
[null,"dagen na ontvangst van de goederen bij aangetekende brief worden meegedeeld. In geval van betwisting zijn "]
[null,"uitsluitend de rechtbanken van Kortrijk bevoegd. De leveringen  geschieden op risico van de bestemmeling. Er "]
[null,"wordt uitdrukkelijk overeengekomen dat de klant door het plaatsen van een bestelling onze algemene "]
[null,"verkoopsvoorwaarden erkent. Elke wijziging hieraan moet voorafgaandelijk in een schriftelijk akkoord worden "]
[null,"vastgelegd."]
[]
[null,"2) Annulatie dient schriftelijk en gedateerd te geschieden. "]
[null,"In geval van annulatie minder dan 60 dagen voor de activiteit blijft het voorschot eigendom van het Katelijnenhof."]
[null,"Voor annulatie minder dan 10 dagen voor de activiteit is de klant in alle gevallen verplicht 35 % van de reservatie-"]
[null,"waarde van de gehele manifestatie te vergoeden."]
[null,"Bij annulatie minder dan 5 dagen voor  de activiteit is de klant in alle gevallen verplicht de reservatie waarde van de "]
[null,"gehele manifestatie te vergoeden."]
[]
[null,"3) Iedere levering van dranken, voedingswaren of diensten in de  zalen is uitsluitend voorbehouden aan het "]
[null,"Katelijnenhof, tenzij er een andere schriftelijke overeenkomst is."]
[]
[null,"4) De klant is eraan gehouden voor iedere dansavond met groot orkest een aanvraag tot toelating in te dienen bij "]
[null,"SABAM, Rijselsestraat 51, 8500 Kortrijk, Tel : 056/210738 en alle kosten voortvloeiend uit deze aanvraag te "]
[null,"dragen.  Voor een gewone disc-jockey betalen wij jaarlijks een vaste bijdrage. Het verbruik (drank en voeding) "]
[null,"van de DJ is ten laste van de klant. Gelet op de nieuwe geluidsnormen, van kracht op 01/01/2013, moet de "]
[null,"klant de DJ of elke andere persoon of toestel dat  geluid produceert verplichten zich aan deze normen te houden. "]
[null,"De toelating voor onze zaal is – maximaal geluidsniveau > 85 dB(A) LAeq,15min en ≤ 95 dB(A) LAeq,15min. "]
[null,"Dit is ruim voldoende. Alle boetes ten gevolge een overschrijding van deze voorwaarde zijn ten laste van de "]
[null,"klant. Er wordt een professionele houding van elke DJ of geluidstechnicus verwacht."]
[]
[null,"5) Alle door de klant meegebrachte materiaal dient door de klant te worden verzekerd en direct na het beëindigen"]
[null,"van de manifestatie te worden verwijderd uit de zaal. Het Katelijnenhof behoudt het recht de leverancier te "]
[null,"aanvaarden en voorschriften te geven om de lokalen ongeschonden te behouden. Het is strikt verboden om "]
[null,"versieringen aan de muren of plafonds te bevestigen met duimspijkers of kleefband ! Bij beschadigingen van "]
[null,"een deel van de muur wordt het geheel als beschadigd beschouwd."]
[]
[null,"6) Het gebruik van de zaal is strikt beperkt tot de in deze overeenkomst vastgestelde functie. "]
[null,"Iedere wijziging in de voorheen verklaarde bestemming brengt automatisch het recht tot prijsherziening met zich mee."]
[]
[null,"7) Het gebruik van de zaal is gratis van zodra het verbruik hoger ligt dan € ",{"$nulls":7},{"$f":"matrixen!E6","v":950}]
[null,{"$f":"\"Indien het verbruik lager ligt dan wordt het factuurbedrag opgetrokken tot € \"&J44","v":"Indien het verbruik lager ligt dan wordt het factuurbedrag opgetrokken tot € 950"}]
[null,"Indien uw feest cash (max € 3000) betaald wordt op de dag zelf dan krijgt u een korting van 2 % "]
[null,"op de gehele factuur. Voor traiteurdienst gelden andere kortingsregels."]
[]
[null,"8) Op vrijdag-, zaterdag- en (in geval van een avondfeest) op zondagnacht sluit de zaal, "]
[null,"overeenkomstig het politiereglement, om 03 uur. "]
[null,"Indien de klant dit wenst kan een afwijking bekomen worden op dit reglement mits het betalen van € ",{"$nulls":10},{"$f":"J44/10","v":95}]
[null,"(btw incl.) per uur. De klant heeft tijd tot 02u30 om te beslissen of hij van deze afwijking wenst gebruik te "]
[null,"maken of niet. Indien de klant akkoord gaat deze toeslag  te betalen zal het Katelijnenhof  onmiddellijk een "]
[null,"aanvraag doen bij de lokale politie. In het andere geval worden vanaf 02u45 geen dranken meer bediend en"]
[null,"sluiten om 03u00 de deuren. Voor de andere dagen gelden andere tarieven."]
[null,"Op een zaterdag - en zondagmiddagfeest sluit de zaal om 18u30. Indien u wenst langer te blijven wordt per "]
[null,"begonnen uur eveneens een toeslag van € ",{"$nulls":4},{"$f":"M51","v":95}]
[null,"(btw incl.) aangerekend."]
[null,"9) De klant is verantwoordelijk voor de goede orde in en rond de feestzaal. Schade veroorzaakt door een der "]
[null,"aanwezigen kan verhaald worden op deze persoon maar als deze om gelijk welke reden de schade niet kan "]
[null,"vergoeden (vb: te weinig financiële middelen of de veroorzaker is onbekend) kan deze schade eveneens "]
[null,"ondeelbaar worden verhaald op de klant , zijnde de persoon die het feest heeft besteld. VB: per gebroken tulpje "]
[null,"aan de lusters van de grote zaal wordt 25 euro aangerekend."]

{"sheet":"Reservatievoorstel","index":3,"n_rows":50,"n_cols":33,"rows_kept":50,"merged":[[2,14,3,14],[2,15,3,15],[2,16,3,16],[2,17,3,17],[9,12,9,13],[12,9,12,11],[12,12,12,16],[14,9,14,17],[16,9,16,17],[23,14,23,17],[25,9,26,17],[32,4,33,8],[36,0,37,8],[38,0,40,8],[43,0,44,7]]}
[null,null,"Reservatievoorstel    ",{"$nulls":7},"Uitsplitsing per BTW tarief.",{"$nulls":4},"Totaalprijs per vol:",{"$f":"D9","v":{"v":33.8,"d":"33.80"}}]
["Naam Klant:",null,{"$f":"'koud buffet'!F92","v":0},null,"Katelijnenhof",{"$nulls":9},{"$f":"IF(P2>0,\"Prijs drankforfait na de maaltijd, volledig aan 21% BTW:\",\"\")","v":"Prijs drankforfait na de maaltijd, volledig aan 21% BTW:"},{"$f":"IF(Q2>0,\"Prijs drankforfait na de maaltijd, volledig aan 21% BTW:\",\"\")","v":""},{"$f":"'koud buffet'!D76","v":{"v":0,"d":"0.00"}}]
["Adres:",null,{"$f":"'koud buffet'!F93","v":0},null,"Heirweg 172",null,null,"aankomst om:",{"$f":"'koud buffet'!F90","v":0},{"$nulls":3},"Menu",null,"Dep. B",{"$f":"IF(Q2>0,\"Drank- forfait:\",\"\")","v":""},"Totaal aan 21%","Dep. A"]
["Stad:",null,{"$f":"'koud buffet'!F94","v":0},null,"8800 Roeselare",null,null,"aan tafel om:",{"$f":"'koud buffet'!F91","v":0},null,"aantal","totaal:","deel 12%","deel21%"]
["Tel nr:",null,{"$f":"'koud buffet'!F95","v":0},null,"info@katelijnenhof.be",{"$nulls":4},"Vol",{"$f":"C9","v":0},{"$f":"Q1-Q2","v":{"v":33.8,"d":"33.80"}},{"$f":"ROUND(L5*0.65,2)","v":21.97},{"$f":"L5-M5","v":{"v":11.829999999999998,"d":"11.83"}},{"$f":"K5*M5","v":{"v":0,"d":"0.00"}},{"$f":"Q2","v":{"v":0,"d":"0.00"}},{"$f":"N5+P5","v":{"v":11.829999999999998,"d":"11.83"}},{"$f":"K5*Q5","v":{"v":0,"d":"0.00"}}]
[{"$f":"'koud buffet'!J103","v":"reden feest:"},{"$f":"'koud buffet'!K103","v":0},null,null,"Gsm 0475/618058",{"$nulls":4},"JR 1/2",{"$f":"C10","v":0},{"$f":"D10-P6","v":{"v":16.9,"d":"16.90"}},{"$f":"ROUND(L6*0.65,2)","v":10.99},{"$f":"L6-M6","v":{"v":5.909999999999998,"d":"5.91"}},{"$f":"K6*M6","v":{"v":0,"d":"0.00"}},{"$f":"ROUND(Q2/2,2)","v":{"v":0,"d":"0.00"}},{"$f":"N6+P6","v":{"v":5.909999999999998,"d":"5.91"}},{"$f":"K6*Q6","v":{"v":0,"d":"0.00"}}]
["Datum activiteit:",null,{"$f":"'koud buffet'!F83","v":"00:00:00"},null,"email klant:",{"$f":"'koud buffet'!F96","v":0},{"$nulls":3},"JR 1/3",{"$f":"C11","v":0},{"$f":"D11-P7","v":11.27},{"$f":"ROUND(L7*0.65,2)","v":7.33},{"$f":"L7-M7","v":{"v":3.9399999999999995,"d":"3.94"}},{"$f":"K7*M7","v":{"v":0,"d":"0.00"}},{"$f":"ROUND(Q2/3,2)","v":{"v":0,"d":"0.00"}},{"$f":"N7+P7","v":{"v":3.9399999999999995,"d":"3.94"}},{"$f":"K7*Q7","v":{"v":0,"d":"0.00"}}]
[null,null,"Totaal aantal personen: ",{"$f":"C9+C12+C11+C10","v":0},{"$nulls":3},"raming totaal 1:",{"$f":"C9*D9+C10*D10+C11*D11+C12*D12","v":{"v":0,"d":"€ 0.00"}},"JR gratis",{"$f":"C12","v":0},{"$f":"E12","v":{"v":0,"d":"0.00"}},{"$f":"L8*0.65","v":0},{"$f":"L8*0.35","v":{"v":0,"d":"0.00"}},{"$f":"K8*M8","v":{"v":0,"d":"0.00"}},null,{"$f":"N8+P8","v":0},{"$f":"K8*Q8","v":{"v":0,"d":"0.00"}}]
[null,"volwassenen:",{"$f":"'koud buffet'!F85","v":0},{"$f":"'koud buffet'!D7","v":{"v":33.8,"d":"33.80"}},{"$nulls":3},"ander rekenblad:",{"$f":"'koud buffet'!F98","v":{"v":0,"d":"€ 0.00"}},null,null,"Voorschot reeds betaald:",null,null,{"$f":"ROUND(M9/98*100,2)","v":0},{"$f":"IF(Q9>0,\"Huur zaal/exclusiviteit: \",\"\")","v":""},{"$f":"I10+I11","v":{"v":0,"d":"0.00"}}]
[null,"JR 1/2 (6 t.e.m. 11) :",{"$f":"'koud buffet'!F86","v":0},{"$f":"'koud buffet'!J7","v":{"v":16.9,"d":"16.90"}},{"$nulls":3},"huur zaal:",{"$f":"IF(D8=0,0,IF((I8+I9)<'Algemene verkoopsvoorwaarden'!J44,'Algemene verkoopsvoorwaarden'!J44-Reservatievoorstel!I8-Reservatievoorstel!I9,0))","v":{"v":0,"d":"€ 0.00"}},null,null,"Gestort / betaald op:"]
[null,"JR 1/3 (3 t.e.m. 5) :",{"$f":"'koud buffet'!F87","v":0},{"$f":"'koud buffet'!H7","v":11.27},{"$nulls":3},{"$f":"IF(I11>0,\"U koos voor exclusiviteit:\",\"\")","v":""},{"$f":"'koud buffet'!L74","v":{"v":0,"d":"€ 0.00"}},null,null,{"$f":"IF(O9>0,\"Voorschot uitgesplitst:\",\"\")","v":""},{"$f":"IF(O9>0,\" € \"&ROUND(O9*0.65,2)& \" x 12% => Dep. B  en € \" & ROUND(O9*0.35,2) & \" x 21% => Dep. A.\",\"\")","v":""}]
[null,"JR gratis (0 t.e.m. 2) :",{"$f":"'koud buffet'!F88","v":0},{"$f":"'koud buffet'!F7","v":"0,00"},{"$nulls":3},"raming algemeen totaal:",{"$f":"I10+I9+I8+I11","v":{"v":0,"d":"€ 0.00"}},{"$nulls":3},"Voorschot wordt gesplitst over:",{"$f":"IF(O9>0,ROUNDUP((O9+1)/L5,0),0)","v":0}," volwassenen"]
[{"$nulls":7},"raming te betalen indien contante betaling  (max € 3000 cash):",{"$f":"'koud buffet'!G104","v":{"v":0,"d":"€ 0.00"}},"Input GKS:",null,null,{"$f":"IF(O9*0.65 >N12*M5,\"ONMOGELIJK U bekomt negatieve waarden.\",\"\")","v":""}]
["Voorkeur tafelschikking:",null,null,{"$f":"'koud buffet'!K102","v":"geen voorkeur"},{"$nulls":5},{"$f":"N12","v":0},"vol","x",{"$f":"IFERROR(ROUND(M5-O9*0.65/N12,2),\"\")","v":""},{"v":0.12,"d":"12%"},{"$f":"IFERROR(J14*M14,\"\")","v":""},"Dep. B","Verwerking voorschot"]
[{"$f":"'koud buffet'!H84","v":""},{"$nulls":7},{"$f":"'koud buffet'!B20","v":"De gast die een extra aperitief bestelt betaalt deze zelf"},{"$f":"IFERROR( \" Er wordt € \" & ROUND(O9*0.65/N12,2) & \" minder geboekt bij \" & N12 & \" personen omdat dit reeds als voorschot werd geboekt.\",\"\")","v":""}]
[{"$f":"'koud buffet'!H85","v":""},{"$nulls":7},{"$f":"IF(O9>0,\" Uw voorschot van € \" & O9 & \" wordt nog in mindering gebracht\",\"\")","v":""},{"$f":"N12","v":0},"vol","x",{"$f":"IFERROR(ROUND(Q5-O9*0.35/N12,2),\"\")","v":""},{"v":0.21,"d":"21%"},{"$f":"IFERROR(J16*M16,\"\")","v":""},"Dep. A","Verwerking voorschot"]
[{"$f":"'koud buffet'!H86","v":""},{"$nulls":8},{"$f":"IFERROR( \" Er wordt € \" & ROUND(O9*0.35/N12,2) & \" minder geboekt bij \" & N12 & \" personen omdat dit reeds als voorschot werd geboekt.\",\"\")","v":""}]
[{"$f":"'koud buffet'!H87","v":""},{"$nulls":8},{"$f":"K5-J14","v":0},{"$f":"K14","v":"vol"},"x",{"$f":"M5","v":21.97},{"v":0.12,"d":"12%"},{"$f":"J18*M18","v":{"v":0,"d":"0.00"}},"Dep. B"]
[{"$f":"'koud buffet'!H88","v":""},{"$nulls":8},{"$f":"K5-J16","v":0},{"$f":"K16","v":"vol"},"x",{"$f":"Q5","v":{"v":11.829999999999998,"d":"11.83"}},{"v":0.21,"d":"21%"},{"v":0,"d":"0.00"},"Dep. A"]
[{"$f":"'koud buffet'!H89","v":""},{"$nulls":8},{"$f":"K6","v":0},{"$f":"J6","v":"JR 1/2"},"x",{"$f":"M6","v":10.99},{"v":0.12,"d":"12%"},{"v":0,"d":"0.00"},"Dep. B"]
[{"$f":"'koud buffet'!H90","v":""},{"$nulls":8},{"$f":"K6","v":0},{"$f":"J6","v":"JR 1/2"},"x",{"$f":"Q6","v":{"v":5.909999999999998,"d":"5.91"}},{"v":0.21,"d":"21%"},{"v":0,"d":"0.00"},"Dep. A"]
[{"$f":"'koud buffet'!H91","v":"Koude aardappelen"},{"$nulls":5},{"$f":"'koud buffet'!H92","v":"Groenten en sausen "},null,null,{"$f":"K7","v":0},{"$f":"J7","v":"JR 1/3"},"x",{"$f":"M7","v":7.33},{"v":0.12,"d":"12%"},{"v":0,"d":"0.00"},"Dep. B"]
["Koud buffet met volgende specialiteiten:",{"$nulls":3},{"$f":"IF('koud buffet'!B50=$AG$23,\"\",'koud buffet'!B50)","v":""},{"$nulls":3},{"$f":"IF('koud buffet'!F50=$AG$25,\"\",'koud buffet'!F50)","v":""},{"$f":"K7","v":0},{"$f":"J7","v":"JR 1/3"},"x",{"$f":"Q7","v":{"v":3.9399999999999995,"d":"3.94"}},{"v":0.21,"d":"21%"},{"v":0,"d":"0.00"},"Dep. A",{"$nulls":16},{"$f":"matrixen!B97","v":"Kies uit deze vlees- of visspecialiteiten"}]
[{"$f":"IF('koud buffet'!B39=$AG$23,\"\",'koud buffet'!B39)","v":""},{"$nulls":3},{"$f":"IF('koud buffet'!F39=$AG$24,\"\",'koud buffet'!F39)","v":""},{"$nulls":3},{"$f":"IF('koud buffet'!F51=$AG$25,\"\",'koud buffet'!F51)","v":""},{"$f":"IF(L24>0,\"1\",0)","v":0},{"$f":"IF(L24>0,\"x\",\"\")","v":""},{"$f":"Q9","v":{"v":0,"d":"0.00"}},{"$f":"IF(L24>0,\"21%\",\"\")","v":""},{"$f":"IF(L24>0,\"Dep. A\",\"\")","v":""},{"$f":"P9","v":""},{"$nulls":17},{"$f":"matrixen!E97","v":"supplement 1"}]
[{"$f":"IF('koud buffet'!B40=$AG$23,\"\",'koud buffet'!B40)","v":""},{"$nulls":3},{"$f":"IF('koud buffet'!F40=$AG$24,\"\",'koud buffet'!F40)","v":""},{"$nulls":3},{"$f":"IF('koud buffet'!F52=$AG$25,\"\",'koud buffet'!F52)","v":""},null,"Totale boekwaarde:",{"$f":"SUM(O14:O23)+L24+O9+I9","v":{"v":0,"d":"0.00"}},{"$f":"IF(SUM(O14:O23)+L24+O9+I9 <>I12,\" Er is iets fout met de splitsingstabel\",\"\")","v":""},{"$nulls":19},{"$f":"matrixen!H97","v":"supplement 2"}]
[{"$f":"IF('koud buffet'!B41=$AG$23,\"\",'koud buffet'!B41)","v":""},{"$nulls":3},{"$f":"IF('koud buffet'!F41=$AG$24,\"\",'koud buffet'!F41)","v":""},{"$nulls":4},{"$f":"\"De eventuele korting contant van 2 %, in het huidig voorstel is dit € \" &ROUND( I12-I13,2) & \" is nog niet in bovenstaande splitsing verwerkt.\"","v":"De eventuele korting contant van 2 %, in het huidig voorstel is dit € 0 is nog niet in bovenstaande splitsing verwerkt."}]
[{"$f":"IF('koud buffet'!B42=$AG$23,\"\",'koud buffet'!B42)","v":""},{"$nulls":3},{"$f":"IF('koud buffet'!F42=$AG$24,\"\",'koud buffet'!F42)","v":""}]
[{"$f":"IF('koud buffet'!B43=$AG$23,\"\",'koud buffet'!B43)","v":""},{"$nulls":3},{"$f":"IF('koud buffet'!F43=$AG$24,\"\",'koud buffet'!F43)","v":""},{"$nulls":4},{"$f":"IF(M28<>\"\",\"Detail van het aperitief:\",\"\")","v":""},null,null,{"$f":"A15","v":""},{"$nulls":4},{"$f":"'koud buffet'!F13","v":0}]
[{"$f":"IF('koud buffet'!B44=$AG$23,\"\",'koud buffet'!B44)","v":""},{"$nulls":3},{"$f":"IF('koud buffet'!F44=$AG$24,\"\",'koud buffet'!F44)","v":""},{"$nulls":12},{"$f":"'koud buffet'!F14","v":0}]
[{"$f":"IF('koud buffet'!B45=$AG$23,\"\",'koud buffet'!B45)","v":""},{"$nulls":3},{"$f":"IF('koud buffet'!F45=$AG$24,\"\",'koud buffet'!F45)","v":""},{"$nulls":4},{"$f":"'koud buffet'!G13","v":0},{"$nulls":7},{"$f":"'koud buffet'!F15","v":0}]
[{"$f":"IF('koud buffet'!B46=$AG$23,\"\",'koud buffet'!B46)","v":""},{"$nulls":3},{"$f":"IF('koud buffet'!F46=$AG$24,\"\",'koud buffet'!F46)","v":""},{"$nulls":4},{"$f":"'koud buffet'!G14","v":0},{"$nulls":7},{"$f":"'koud buffet'!F16","v":0}]
[{"$f":"IF('koud buffet'!B47=$AG$23,\"\",'koud buffet'!B47)","v":""},{"$nulls":3},{"$f":"IF('koud buffet'!F47=$AG$24,\"\",'koud buffet'!F47)","v":""},{"$nulls":4},{"$f":"'koud buffet'!G15","v":0},{"$nulls":7},{"$f":"'koud buffet'!F17","v":0}]
[{"$f":"IF('koud buffet'!B48=$AG$23,\"\",'koud buffet'!B48)","v":""},{"$nulls":3},{"$f":"'koud buffet'!H96","v":"Huiswijn, bieren en frisdranken als forfait"},{"$nulls":4},{"$f":"'koud buffet'!G16","v":0},{"$nulls":7},{"$f":"'koud buffet'!F18","v":0}]
[{"$f":"IF('koud buffet'!B49=$AG$23,\"\",'koud buffet'!B49)","v":""},{"$nulls":8},{"$f":"'koud buffet'!G17","v":0}]
[{"$f":"'koud buffet'!H97","v":""},{"$nulls":8},{"$f":"'koud buffet'!G18","v":0}]
[{"$f":"'koud buffet'!H98","v":""},{"$nulls":8},{"$f":"'koud buffet'!G19","v":0}]
[{"$f":"'koud buffet'!H99  & \" \" & 'koud buffet'!B76","v":"Keuze drank na de maaltijd: Alle drank na de maaltijd komt op één rekening en wordt door de organisator van het feest betaald"},{"$nulls":8},{"$f":"'koud buffet'!G20","v":0}]
[{"$nulls":9},{"$f":"'koud buffet'!G21","v":0}]
[{"$f":"\"Opmerking : \" &'koud buffet'!K104","v":"Opmerking : "},{"$nulls":8},{"$f":"'koud buffet'!G22","v":0}]
[{"$nulls":9},{"$f":"'koud buffet'!G23","v":0}]
[{"$nulls":9},{"$f":"'koud buffet'!G24","v":""}]
[null,"Vegetariërs: ",{"$f":"'koud buffet'!G76","v":"nee"},null,null,"Feest met discobar: ",{"$f":"'koud buffet'!G78","v":"nee"},null,"Halal bereidingen: ",{"$f":"'koud buffet'!G25","v":0}]
[null,"Speciale dieten: ",{"$f":"'koud buffet'!I76","v":"nee"},null,null,{"$f":"'koud buffet'!H78","v":"Allergenen: "},{"$f":"'koud buffet'!I78","v":"nee"},null,{"$f":"'koud buffet'!K76","v":"nee"},{"$f":"'koud buffet'!G26","v":0}]
[{"$f":"'koud buffet'!B78 & \" \" & 'koud buffet'!B79","v":"Wijze van betaling: Betaling op de dag zelf (cash of bancontact), u bekomt 2% korting op het totaal"},{"$nulls":7},"Factuur:",{"$f":"IF(A35<>\"\",\"Detail van het dessert:\",\"\")","v":""}]
[{"$nulls":8},{"$f":"'koud buffet'!K105","v":"nee"},{"$f":"IF('koud buffet'!$B$59=matrixen!$B$132,'koud buffet'!B62 & \", \" & 'koud buffet'!B63,'koud buffet'!F59)","v":0}]
["Het juiste aantal EN de gewenste tafelschikking moet ons meegedeeld worden ten laatste op: ",{"$nulls":7},{"$f":"C7-9","v":-9},{"$f":"IF('koud buffet'!$B$59=matrixen!$B$132,'koud buffet'!B64 & \", \" & 'koud buffet'!B65,'koud buffet'!F60)","v":0}]
["Wijzigingen na deze datum van aantal en/of tafelschikking hebben prijsherzieningen tot gevolg!",{"$nulls":8},{"$f":"IF('koud buffet'!$B$59=matrixen!$B$132,'koud buffet'!B66 & \", \" & 'koud buffet'!B67,'koud buffet'!F61)","v":0}]
["Dit aantal geldt als minimum voor facturatie. Verdere verkoopsvoorwaarden op een ander werkblad. ",{"$nulls":8},{"$f":"IF('koud buffet'!$B$59=matrixen!$B$132,'koud buffet'!B68,'koud buffet'!F62)","v":0}]
["Vergeet ze niet te lezen.",{"$nulls":6},"Gaat u akkoord met de algemene verkoopsvoorwaarden?",{"$f":"'koud buffet'!K101","v":"ja"},{"$f":"'koud buffet'!F71","v":0}]
["Handtekening der beide partijen voor akkoord:",{"$nulls":3},"De klant",null,null,"Het Katelijnenhof",null,{"$f":"'koud buffet'!F72","v":0}]